fUSD/lending_fUSD_20240118
["ID","MTS","AMOUNT","RATE_DAILY","PERIOD"]
[312022315,1705554645166,-2534.51,0.00021917,2]
[312022316,1705554645176,-500.0,0.00021917,2]
[312022317,1705554645187,-500.0,0.00021917,2]
[312022318,1705554645197,-3592.69,0.00021917,2]
[312022319,1705554645208,-500.0,0.00021917,2]
[312022320,1705554645218,-500.0,0.00021917,2]
[312022321,1705554645227,-1572.23,0.00021917,2]
[312022322,1705554645237,-500.0,0.00021917,2]
[312022323,1705554645246,-702.5,0.00021917,2]
[312022324,1705554645256,-500.0,0.00021917,2]
[312022325,1705554645266,-731.46,0.00021917,2]
[312022326,1705554645275,-645.55,0.00021917,2]
[312022327,1705554645286,-503.29201881,0.00021917,2]
[312022328,1705554645296,-762.44,0.00021917,2]
[312022329,1705554645307,-500.0,0.00021917,2]
[312022330,1705554645316,-316.57204053,0.00021917,2]
[312022331,1705554645326,-639.67,0.00021917,2]
[312022332,1705554645336,-503.64462733,0.00021917,2]
[312022333,1705554645346,-1106.75,0.00021917,2]
[312022334,1705554645357,-500.0,0.00021917,2]
[312022335,1705554645367,-500.0,0.00021917,2]
[312022336,1705554645377,-500.0,0.00021917,2]
[312022337,1705554645386,-500.0,0.00021917,2]
[312022338,1705554645397,-608.85,0.00021917,2]
[312022339,1705554645407,-1059.58,0.00021917,2]
[312022340,1705554645417,-1083.09,0.00021917,2]
[312022341,1705554645427,-450.43,0.00021917,2]
[312022342,1705554645437,-500.0,0.00021917,2]
[312022343,1705554645447,-3571.6,0.00021917,2]
[312022344,1705554645460,-500.0,0.00021917,2]
[312022345,1705554645470,-500.0,0.00021917,2]
[312022346,1705554645479,-500.0,0.00021917,2]
[312022347,1705554645489,-622.0,0.00021917,2]
[312022348,1705554645499,-500.0,0.00021917,2]
[312022349,1705554645509,-500.0,0.00021917,2]
[312022350,1705554645519,-831.72,0.00021917,2]
[312022351,1705554645528,-553.47,0.00021917,2]
[312022352,1705554645538,-500.0,0.00021917,2]
[312022353,1705554645549,-506.60238146,0.00021917,2]
[312022354,1705554645559,-500.0,0.00021917,2]
[312022355,1705554645569,-500.0,0.00021917,2]
[312022356,1705554645578,-633.33,0.00021917,2]
[312022357,1705554645588,-500.0,0.00021917,2]
[312022358,1705554645598,-500.0,0.00021917,2]
[312022359,1705554645607,-500.0,0.00021917,2]
[312022360,1705554645617,-1390.07,0.00021917,2]
[312022361,1705554645626,-644.57,0.00021917,2]
[312022362,1705554645636,-1803.62,0.00021917,2]
[312022363,1705554645648,-962.1,0.00021917,2]
[312022364,1705554645659,-500.0,0.00021917,2]
[312022365,1705554645668,-500.0,0.00021917,2]
[312022366,1705554645678,-500.0,0.00021917,2]
[312022367,1705554645688,-500.0,0.00021917,2]
[312022368,1705554645699,-500.0,0.00021917,2]
[312022369,1705554645709,-500.0,0.00021917,2]
[312022370,1705554645718,-574.16,0.00021917,2]
[312022371,1705554645728,-500.0,0.00021917,2]
[312022372,1705554645738,-500.0,0.00021917,2]
[312022373,1705554645747,-328.9060057,0.00021917,2]
[312022374,1705554645757,-500.0,0.00021917,2]
[312022375,1705554645768,-500.0,0.00021917,2]
[312022376,1705554645778,-500.0,0.00021917,2]
[312022377,1705554645788,-751.05,0.00021917,2]
[312022378,1705554645798,-500.0,0.00021917,2]
[312022379,1705554645808,-500.0,0.00021917,2]
[312022380,1705554645818,-500.0,0.00021917,2]
[312022381,1705554645828,-500.0,0.00021917,2]
[312022382,1705554645838,-500.0,0.00021917,2]
[312022383,1705554645848,-500.0,0.00021917,2]
[312022384,1705554645859,-500.0,0.00021917,2]
[312022385,1705554645869,-500.0,0.00021917,2]
[312022386,1705554645879,-598.94,0.00021917,2]
[312022388,1705554645889,-9869.92,0.00021917,2]
[312022390,1705554645899,-821.54,0.00021917,2]
[312022392,1705554645917,-500.0,0.00021917,2]
[312022394,1705554645934,-898.08,0.00021917,2]
[312022396,1705554645944,-500.0,0.00021917,2]
[312022398,1705554645954,-500.0,0.00021917,2]
[312022400,1705554645964,-500.0,0.00021917,2]
[312022402,1705554645974,-240.27,0.00021917,2]
[312022405,1705554645985,-500.0,0.00021917,2]
[312022407,1705554645994,-632.83,0.00021917,2]
[312022408,1705554646004,-1531.02,0.00021917,2]
[312022410,1705554646014,-2362.73,0.00021917,2]
[312022413,1705554646024,-500.0,0.00021917,2]
[312022414,1705554646033,-500.0,0.00021917,2]
[312022415,1705554646043,-500.0,0.00021917,2]
[312022416,1705554646053,-808.0,0.00021917,2]
[312022417,1705554646063,-500.0,0.00021917,2]
[312022418,1705554646072,-574.37,0.00021917,2]
[312022419,1705554646082,-500.0,0.00021917,2]
[312022420,1705554646091,-538.73277932,0.00021917,2]
[312022421,1705554646101,-835.43,0.00021917,2]
[312022422,1705554646111,-500.0,0.00021917,2]
[312022423,1705554646121,-500.0,0.00021917,2]
[312022424,1705554646131,-1447.15,0.00021917,2]
[312022425,1705554646140,-500.0,0.00021917,2]
[312022426,1705554646150,-225.84536867,0.00021917,2]
[312022427,1705554646160,-500.0,0.00021917,2]
[312022428,1705554646170,-503.8172592,0.00021917,2]
[312022429,1705554646179,-500.0,0.00021917,2]
[312022430,1705554646189,-1418.38,0.00021917,2]
[312022431,1705554646198,-719.02,0.00021917,2]
[312022432,1705554646210,-548.54,0.00021917,5]
[312022433,1705554646220,-500.0,0.00021917,2]
[312022434,1705554646230,-1000.25,0.00021917,2]
[312022435,1705554646239,-4597.66,0.00021917,2]
[312022436,1705554646249,-767.72,0.00021917,2]
[312022437,1705554646259,-500.0,0.00021917,2]
[312022438,1705554646269,-500.0,0.00021917,2]
[312022439,1705554646278,-500.0,0.00021917,2]
[312022440,1705554646288,-500.0,0.00021917,2]
[312022441,1705554646298,-1040.47,0.00021917,2]
[312022442,1705554646308,-591.1,0.00021917,2]
[312022443,1705554646318,-555.22,0.00021917,2]
[312022444,1705554646328,-1086.94,0.00021917,2]
[312022445,1705554646338,-2226.01,0.00021917,2]
[312022446,1705554646348,-500.0,0.00021917,2]
[312022447,1705554646359,-760.4,0.00021917,2]
[312022448,1705554646369,-500.0,0.00021917,2]
[312022449,1705554646378,-500.0,0.00021917,2]
[312022450,1705554646388,-500.0,0.00021917,2]
[312022451,1705554646397,-500.0,0.00021917,2]
[312022452,1705554646407,-500.0,0.00021917,2]
[312022453,1705554646417,-572.12,0.00021917,2]
[312022455,1705554646427,-775.2,0.00021917,2]
[312022456,1705554646437,-500.0,0.00021917,2]
[312022458,1705554646504,-500.0,0.00021917,2]
[312022459,1705554646514,-500.0,0.00021917,2]
[312022460,1705554646524,-500.0,0.00021917,2]
[312022461,1705554646534,-500.0,0.00021917,2]
[312022462,1705554646544,-500.0,0.00021917,2]
[312022463,1705554646553,-500.0,0.00021917,2]
[312022464,1705554646563,-579.15,0.00021917,2]
[312022465,1705554646572,-500.0,0.00021917,2]
[312022466,1705554646582,-500.0,0.00021917,2]
[312022467,1705554646591,-500.0,0.00021917,2]
[312022468,1705554646601,-500.0,0.00021917,2]
[312022469,1705554646612,-500.0,0.00021917,2]
[312022470,1705554646622,-498.59930223,0.00021917,2]
[312022471,1705554646632,-500.0,0.00021917,2]
[312022472,1705554646645,-601.12,0.00021917,2]
[312022473,1705554646654,-1152.55,0.00021917,2]
[312022474,1705554646664,-608.84,0.00021917,2]
[312022475,1705554646674,-506.57412129,0.00021917,2]
[312022476,1705554646685,-500.0,0.00021917,2]
[312022477,1705554646694,-404.22988146,0.00021917,2]
[312022478,1705554646703,-500.0,0.00021917,2]
[312022479,1705554646714,-500.0,0.00021917,2]
[312022480,1705554646724,-500.0,0.00021917,2]
[312022481,1705554646734,-505.92,0.00021917,2]
[312022482,1705554646743,-500.0,0.00021917,2]
[312022483,1705554646752,-500.0,0.00021917,2]
[312022484,1705554646761,-524.18083518,0.00021917,2]
[312022485,1705554646770,-500.0,0.00021917,2]
[312022486,1705554646780,-500.0,0.00021917,2]
[312022487,1705554646789,-596.85,0.00021917,2]
[312022488,1705554646797,-500.0,0.00021917,2]
[312022489,1705554646806,-500.0,0.00021917,2]
[312022490,1705554646817,-504.81210388,0.00021917,2]
[312022491,1705554646827,-512.32690201,0.00021917,2]
[312022492,1705554646837,-557.53,0.00021917,2]
[312022493,1705554646847,-500.0,0.00021917,2]
[312022494,1705554646857,-321.64043726,0.00021917,2]
[312022495,1705554646866,-500.0,0.00021917,2]
[312022496,1705554646875,-1363.5,0.00021917,2]
[312022497,1705554646885,-500.0,0.00021917,2]
[312022498,1705554646895,-500.0,0.00021917,2]
[312022499,1705554646904,-500.0,0.00021917,2]
[312022500,1705554646914,-1238.49,0.00021917,2]
[312022501,1705554646924,-500.0,0.00021917,2]
[312022502,1705554646934,-500.0,0.00021917,2]
[312022503,1705554646944,-151.0,0.00021918,2]
[312022504,1705554646953,-151.0,0.00021918,2]
[312022505,1705554646964,-250.0,0.00021918,2]
[312022506,1705554646974,-236.501162,0.00021918,2]
[312022507,1705554646985,-151.0,0.00021918,2]
[312022508,1705554646996,-151.0,0.00021918,2]
[312022509,1705554647005,-151.0,0.00021918,2]
[312022510,1705554647015,-151.0,0.00021918,2]
[312022511,1705554647024,-151.0,0.00021918,2]
[312022512,1705554647034,-151.0,0.00021918,2]
[312022513,1705554647043,-151.0,0.00021918,2]
[312022514,1705554647054,-151.0,0.00021918,2]
[312022515,1705554647063,-151.0,0.00021918,2]
[312022516,1705554647073,-188.316856,0.00021918,2]
[312022517,1705554647082,-500.0,0.00021918,2]
[312022518,1705554647091,-500.0,0.00021918,2]
[312022519,1705554647101,-500.0,0.00021918,2]
[312022520,1705554647111,-500.0,0.00021918,2]
[312022521,1705554647121,-500.0,0.00021918,2]
[312022522,1705554647130,-500.0,0.00021918,2]
[312022523,1705554647140,-151.0,0.00021918,2]
[312022524,1705554647149,-151.0,0.00021918,2]
[312022525,1705554647159,-151.0,0.00021918,2]
[312022526,1705554647168,-151.0,0.00021918,2]
[312022527,1705554647180,-151.0,0.00021918,2]
[312022528,1705554647190,-190.616993,0.00021918,2]
[312022529,1705554647199,-161.95,0.00021923,2]
[312022530,1705554647210,-1500.0,0.00021927,2]
[312022531,1705554647219,-150.0,0.0002193,2]
[312022532,1705554647228,-500.0,0.00021999,2]
[312022533,1705554647238,-4000.0,0.00022,2]
[312022534,1705554647248,-155.0,0.00022,2]
[312022535,1705554647258,-450.0,0.00022,3]
[312022536,1705554647267,-360.83306173,0.00022,2]
[312022537,1705554647277,-34537.0,0.00022,2]
[312022538,1705554647286,-3263.0,0.00022,2]
[312022539,1705554647295,-207.0,0.00022007,7]
[312022540,1705554647305,-18251.97067823,0.00022014,2]
[312022541,1705554647314,-500.0,0.00022048,7]
[312022542,1705554647323,-463.62713324,0.00022056,3]
[312022543,1705554647332,-799.397,0.00022056,2]
[312022544,1705554647342,-238.736,0.00022056,2]
[312022545,1705554647351,-213.722,0.00022056,2]
[312022546,1705554647361,-1050.197,0.00022056,2]
[312022547,1705554647371,-162.5,0.00022081,2]
[312022548,1705554647381,-370.92670383,0.00022091,2]
[312022549,1705554647390,-195.00618663,0.00022091,4]
[312022550,1705554647399,-228.28031148,0.00022091,2]
[312022551,1705554647408,-168.88595527,0.00022091,2]
[312022552,1705554647418,-186.39555416,0.00022091,2]
[312022553,1705554647427,-1501.0670071,0.00022091,2]
[312022554,1705554647436,-151.0,0.00022112,7]
[312022555,1705554647445,-500.0,0.00022112,7]
[312022556,1705554647454,-500.0,0.00022112,7]
[312022557,1705554647465,-171.745961,0.00022112,7]
[312022558,1705554647474,-18251.97067823,0.00022112,2]
[312022559,1705554647485,-161.38,0.00022135,2]
[312022560,1705554647495,-218.113694,0.00022148,7]
[312022561,1705554647504,-151.40118,0.00022148,3]
[312022562,1705554647514,-151.40118,0.00022148,3]
[312022563,1705554647525,-151.40118,0.00022148,3]
[312022564,1705554647536,-151.40118,0.00022148,3]
[312022565,1705554647546,-151.40118,0.00022148,3]
[312022566,1705554647558,-151.40118,0.00022148,3]
[312022567,1705554647567,-151.40118,0.00022148,3]
[312022568,1705554647577,-151.40118,0.00022148,3]
[312022569,1705554647586,-151.40118,0.00022148,3]
[312022570,1705554647596,-151.40118,0.00022148,3]
[312022571,1705554647606,-151.40118,0.00022148,3]
[312022572,1705554647616,-151.40118,0.00022148,3]
[312022573,1705554647626,-151.40118,0.00022148,3]
[312022574,1705554647635,-151.40118,0.00022148,3]
[312022575,1705554647646,-151.40118,0.00022148,3]
[312022576,1705554647657,-151.40118,0.00022148,3]
[312022577,1705554647666,-151.40118,0.00022148,3]
[312022578,1705554647677,-151.40118,0.00022148,3]
[312022579,1705554647687,-151.40118,0.00022148,3]
[312022580,1705554647696,-151.40118,0.00022148,3]
[312022581,1705554647706,-151.40118,0.00022148,3]
[312022582,1705554647716,-151.40118,0.00022148,3]
[312022583,1705554647728,-151.40118,0.00022148,3]
[312022584,1705554647737,-151.40118,0.00022148,3]
[312022585,1705554647746,-151.40118,0.00022148,3]
[312022586,1705554647756,-151.40118,0.00022148,3]
[312022587,1705554647765,-151.40118,0.00022148,3]
[312022588,1705554647774,-151.40118,0.00022148,3]
[312022589,1705554647783,-151.40118,0.00022148,3]
[312022590,1705554647793,-151.40118,0.00022148,3]
[312022591,1705554647802,-151.40118,0.00022148,3]
[312022592,1705554647811,-151.40118,0.00022148,3]
[312022593,1705554647823,-151.40118,0.00022148,3]
[312022594,1705554647860,-151.40118,0.00022148,3]
[312022595,1705554647869,-151.40118,0.00022148,3]
[312022596,1705554647878,-151.40118,0.00022148,3]
[312022597,1705554647887,-151.40118,0.00022148,3]
[312022598,1705554647897,-151.40118,0.00022148,3]
[312022599,1705554647906,-151.40118,0.00022148,3]
[312022600,1705554647914,-151.40118,0.00022148,3]
[312022601,1705554647923,-151.40118,0.00022148,3]
[312022602,1705554647932,-151.40118,0.00022148,3]
[312022603,1705554647941,-151.40118,0.00022148,3]
[312022604,1705554647951,-151.40118,0.00022148,3]
[312022605,1705554647962,-151.40118,0.00022148,3]
[312022606,1705554647971,-151.40118,0.00022148,3]
[312022607,1705554647980,-151.40118,0.00022148,3]
[312022608,1705554647989,-151.40118,0.00022148,3]
[312022609,1705554647998,-151.40118,0.00022148,3]
[312022610,1705554648008,-151.40118,0.00022148,3]
[312022611,1705554648017,-151.40118,0.00022148,3]
[312022612,1705554648027,-151.40118,0.00022148,3]
[312022613,1705554648036,-151.40118,0.00022148,3]
[312022614,1705554648046,-265.40118,0.00022148,3]
[312022615,1705554648056,-181.71064083,0.00022181,2]
[312022616,1705554648065,-1154.0,0.00022182,2]
[312022617,1705554648075,-500.0,0.0002219,2]
[312022618,1705554648086,-1131.38,0.0002219,2]
[312022619,1705554648096,-166.15555864,0.0002219,2]
[312022620,1705554648107,-151.0,0.00022191,7]
[312022621,1705554648117,-500.0,0.00022191,7]
[312022622,1705554648126,-500.0,0.00022191,7]
[312022623,1705554648135,-214.247934,0.00022191,7]
[312022624,1705554648145,-151.0,0.00022191,7]
[312022625,1705554648156,-151.0,0.00022191,7]
[312022626,1705554648165,-500.0,0.00022191,7]
[312022627,1705554648175,-500.0,0.00022191,7]
[312022628,1705554648184,-500.0,0.00022191,7]
[312022629,1705554648195,-500.0,0.00022191,7]
[312022630,1705554648204,-500.0,0.00022191,2]
[312022631,1705554648216,-335.57374084,0.00022191,2]
[312022632,1705554648225,-500.0,0.00022191,2]
[312022633,1705554648235,-500.0,0.00022191,2]
[312022634,1705554648246,-500.0,0.00022191,2]
[312022635,1705554648257,-648.6923115,0.00022191,2]
[312022636,1705554648267,-500.0,0.00022191,2]
[312022637,1705554648277,-500.0,0.00022191,2]
[312022638,1705554648287,-268.44,0.00022191,2]
[312022639,1705554648298,-500.0,0.00022191,2]
[312022640,1705554648308,-527.25517411,0.00022191,2]
[312022641,1705554648318,-500.0,0.00022191,2]
[312022642,1705554648327,-500.0,0.00022191,2]
[312022643,1705554648336,-551.95163508,0.00022191,2]
[312022644,1705554648346,-500.0,0.00022191,2]
[312022645,1705554648357,-500.0,0.00022191,2]
[312022646,1705554648366,-500.0,0.00022191,2]
[312022647,1705554648375,-500.0,0.00022191,2]
[312022648,1705554648383,-500.0,0.00022191,2]
[312022649,1705554648392,-500.0,0.00022191,2]
[312022650,1705554648401,-274.57,0.00022191,2]
[312022651,1705554648411,-500.0,0.00022191,2]
[312022652,1705554648420,-182.39089519,0.00022191,2]
[312022653,1705554648430,-507.98660197,0.00022191,2]
[312022654,1705554648439,-500.0,0.00022191,2]
[312022655,1705554648448,-505.55386665,0.00022191,2]
[312022656,1705554648460,-500.0,0.00022191,2]
[312022657,1705554648469,-500.0,0.00022191,2]
[312022658,1705554648480,-500.0,0.00022191,2]
[312022659,1705554648491,-500.0,0.00022191,2]
[312022660,1705554648500,-500.0,0.00022191,2]
[312022661,1705554648510,-431.71845694,0.00022191,2]
[312022662,1705554648519,-500.0,0.00022191,2]
[312022663,1705554648528,-500.0,0.00022191,2]
[312022664,1705554648538,-318.49281772,0.00022191,2]
[312022665,1705554648548,-500.0,0.00022191,2]
[312022666,1705554648558,-500.0,0.00022191,2]
[312022667,1705554648567,-500.0,0.00022191,2]
[312022668,1705554648576,-513.62568832,0.00022191,2]
[312022669,1705554648585,-500.0,0.00022191,2]
[312022670,1705554648595,-500.0,0.00022191,2]
[312022671,1705554648605,-500.0,0.00022191,2]
[312022672,1705554648615,-507.90722772,0.00022191,2]
[312022673,1705554648625,-500.0,0.00022191,2]
[312022674,1705554648634,-500.0,0.00022191,2]
[312022675,1705554648644,-500.0,0.00022191,2]
[312022676,1705554648656,-249.18894561,0.00022191,2]
[312022677,1705554648664,-500.0,0.00022191,2]
[312022678,1705554648674,-510.28815247,0.00022191,2]
[312022679,1705554648683,-500.0,0.00022191,2]
[312022680,1705554648693,-500.0,0.00022191,2]
[312022681,1705554648702,-500.0,0.00022191,2]
[312022682,1705554648713,-500.0,0.00022191,2]
[312022683,1705554648724,-500.0,0.00022191,2]
[312022684,1705554648732,-500.0,0.00022191,2]
[312022685,1705554648742,-500.0,0.00022191,2]
[312022686,1705554648751,-524.41,0.00022191,2]
[312022687,1705554648761,-500.0,0.00022191,2]
[312022688,1705554648771,-500.0,0.00022191,2]
[312022689,1705554648781,-500.0,0.00022191,2]
[312022690,1705554648790,-568.32247372,0.00022191,2]
[312022691,1705554648799,-500.0,0.00022191,2]
[312022692,1705554648809,-500.0,0.00022191,2]
[312022693,1705554648818,-500.0,0.00022191,2]
[312022694,1705554648827,-202.65748637,0.00022191,2]
[312022695,1705554648837,-500.0,0.00022191,2]
[312022696,1705554648846,-500.0,0.00022191,2]
[312022697,1705554648855,-524.52821142,0.00022191,2]
[312022698,1705554648864,-453.5459714,0.00022191,2]
[312022699,1705554648873,-500.0,0.00022191,2]
[312022700,1705554648882,-500.0,0.00022191,2]
[312022701,1705554648891,-500.0,0.00022191,2]
[312022702,1705554648900,-500.0,0.00022191,2]
[312022703,1705554648909,-500.0,0.00022191,2]
[312022704,1705554648918,-500.0,0.00022191,2]
[312022705,1705554648927,-500.0,0.00022191,2]
[312022706,1705554648936,-313.72,0.00022191,2]
[312022707,1705554648945,-354.39112232,0.00022191,2]
[312022708,1705554648955,-505.6557991,0.00022191,2]
[312022709,1705554648966,-500.0,0.00022191,2]
[312022710,1705554648975,-500.0,0.00022191,2]
[312022711,1705554648984,-500.0,0.00022191,2]
[312022712,1705554648993,-500.0,0.00022191,2]
[312022713,1705554649003,-500.0,0.00022191,2]
[312022714,1705554649014,-500.0,0.00022191,2]
[312022715,1705554649026,-500.0,0.00022191,2]
[312022716,1705554649035,-500.0,0.00022191,2]
[312022717,1705554649045,-500.0,0.00022191,2]
[312022718,1705554649054,-500.0,0.00022191,2]
[312022719,1705554649065,-500.0,0.00022191,2]
[312022720,1705554649075,-500.0,0.00022191,2]
[312022721,1705554649085,-942.39,0.00022191,2]
[312022722,1705554649094,-500.0,0.00022191,2]
[312022723,1705554649105,-500.0,0.00022191,2]
[312022724,1705554649115,-500.0,0.00022191,2]
[312022725,1705554649124,-500.0,0.00022191,2]
[312022726,1705554649133,-512.55860549,0.00022191,2]
[312022727,1705554649143,-500.0,0.00022191,2]
[312022728,1705554649152,-500.0,0.00022191,2]
[312022729,1705554649162,-536.42135775,0.00022191,2]
[312022730,1705554649172,-500.0,0.00022191,2]
[312022731,1705554649182,-397.89,0.00022191,2]
[312022732,1705554649192,-500.0,0.00022191,2]
[312022733,1705554649203,-500.0,0.00022191,2]
[312022734,1705554649213,-500.0,0.00022191,2]
[312022735,1705554649221,-151.15914871,0.00022191,2]
[312022736,1705554649230,-500.0,0.00022191,2]
[312022737,1705554649239,-500.0,0.00022191,2]
[312022738,1705554649247,-500.0,0.00022191,2]
[312022739,1705554649256,-500.0,0.00022191,2]
[312022740,1705554649265,-500.0,0.00022191,2]
[312022741,1705554649275,-162.77,0.00022191,2]
[312022742,1705554649284,-500.0,0.00022191,2]
[312022743,1705554649293,-526.51782685,0.00022191,2]
[312022744,1705554649302,-561.05,0.00022191,2]
[312022745,1705554649311,-500.0,0.00022191,2]
[312022746,1705554649321,-500.0,0.00022191,2]
[312022747,1705554649331,-500.0,0.00022191,2]
[312022748,1705554649340,-500.0,0.00022191,2]
[312022749,1705554649350,-500.0,0.00022191,2]
[312022750,1705554649359,-485.28,0.00022191,2]
[312022751,1705554649369,-208.21119346,0.00022191,2]
[312022752,1705554649379,-500.0,0.00022191,2]
[312022753,1705554649388,-500.0,0.00022191,2]
[312022754,1705554649398,-502.5645168,0.00022191,2]
[312022755,1705554649407,-525.15774226,0.00022191,2]
[312022756,1705554649419,-500.0,0.00022191,2]
[312022757,1705554649428,-500.0,0.00022191,2]
[312022758,1705554649440,-500.0,0.00022191,2]
[312022759,1705554649450,-500.0,0.00022191,2]
[312022760,1705554649461,-500.0,0.00022191,2]
[312022761,1705554649471,-500.0,0.00022191,2]
[312022762,1705554649481,-692.52,0.00022191,2]
[312022763,1705554649491,-500.0,0.00022191,2]
[312022764,1705554649500,-500.0,0.00022191,2]
[312022765,1705554649511,-500.0,0.00022191,2]
[312022766,1705554649521,-500.0,0.00022191,2]
[312022767,1705554649532,-500.0,0.00022191,2]
[312022768,1705554649541,-500.0,0.00022191,2]
[312022769,1705554649552,-638.29223036,0.00022191,2]
[312022770,1705554649561,-227.36,0.00022191,2]
[312022771,1705554649571,-235.19570936,0.00022191,2]
[312022772,1705554649580,-500.0,0.00022191,2]
[312022773,1705554649591,-500.0,0.00022191,2]
[312022774,1705554649601,-500.0,0.00022191,2]
[312022775,1705554649612,-500.0,0.00022191,2]
[312022776,1705554649621,-624.05301202,0.00022191,2]
[312022777,1705554649631,-500.0,0.00022191,2]
[312022778,1705554649646,-4468.47,0.00022191,2]
[312022779,1705554649655,-500.0,0.00022191,2]
[312022780,1705554649666,-500.0,0.00022191,2]
[312022781,1705554649675,-500.0,0.00022191,2]
[312022782,1705554649686,-510.04072037,0.00022191,2]
[312022783,1705554649698,-500.0,0.00022191,2]
[312022784,1705554649707,-500.0,0.00022191,2]
[312022785,1705554649718,-500.0,0.00022191,2]
[312022786,1705554649729,-500.0,0.00022191,2]
[312022787,1705554649738,-500.0,0.00022191,2]
[312022788,1705554649748,-500.0,0.00022191,2]
[312022789,1705554649758,-500.0,0.00022191,2]
[312022790,1705554649767,-448.98732697,0.00022191,2]
[312022791,1705554649776,-500.0,0.00022191,2]
[312022792,1705554649786,-500.0,0.00022191,2]
[312022793,1705554649795,-500.0,0.00022191,2]
[312022794,1705554649805,-500.0,0.00022191,2]
[312022795,1705554649815,-263.02206623,0.00022191,2]
[312022796,1705554649825,-500.0,0.00022191,2]
[312022797,1705554649834,-500.0,0.00022191,2]
[312022798,1705554649844,-683.43,0.00022191,2]
[312022799,1705554649854,-500.0,0.00022191,2]
[312022800,1705554649864,-500.0,0.00022191,2]
[312022801,1705554649873,-150.0,0.00022191,2]
[312022802,1705554649883,-551.24,0.00022191,2]
[312022803,1705554649892,-500.0,0.00022191,2]
[312022804,1705554649902,-500.0,0.00022191,2]
[312022805,1705554649912,-500.0,0.00022191,2]
[312022806,1705554649923,-500.0,0.00022191,2]
[312022807,1705554649932,-331.10609703,0.00022191,2]
[312022808,1705554649942,-313.89,0.00022191,2]
[312022809,1705554649953,-266.73052397,0.00022191,2]
[312022810,1705554649964,-500.0,0.00022191,2]
[312022811,1705554649973,-500.0,0.00022191,2]
[312022812,1705554649983,-500.0,0.00022191,2]
[312022813,1705554649993,-462.06952608,0.00022191,2]
[312022814,1705554650002,-500.0,0.00022191,2]
[312022815,1705554650012,-464.40784846,0.00022191,2]
[312022816,1705554650021,-500.0,0.00022191,2]
[312022817,1705554650031,-500.0,0.00022191,2]
[312022818,1705554650040,-500.0,0.00022191,2]
[312022819,1705554650050,-515.83117625,0.00022191,2]
[312022820,1705554650060,-500.0,0.00022191,2]
[312022821,1705554650069,-500.0,0.00022191,2]
[312022822,1705554650078,-500.0,0.00022191,2]
[312022823,1705554650088,-500.0,0.00022191,2]
[312022824,1705554650097,-505.66456082,0.00022191,2]
[312022825,1705554650107,-500.0,0.00022191,2]
[312022826,1705554650116,-500.0,0.00022191,2]
[312022827,1705554650125,-500.0,0.00022191,2]
[312022828,1705554650135,-500.0,0.00022191,2]
[312022829,1705554650144,-500.0,0.00022191,2]
[312022830,1705554650154,-500.0,0.00022191,2]